[Event "*** Titled Tuesday Blitz"]
[Site "Chess.com"]
[Date "2021.04.20"]
[Round "3"]
[White "Diaschess88"]
[Black "gmcorrales"]
[Result "1-0"]
[WhiteElo "2484"]
[BlackElo "2799"]
[TimeControl "180+1"]
[EndTime "10:28:16 PDT"]
[Termination "Diaschess88 won by resignation"]

1. d4 {[%clk 0:02:51.8]} 1... Nf6 {[%clk 0:02:51.8]} 2. c4 {[%clk 0:02:48.9]}
2... g6 {[%clk 0:02:52.4]} 3. Nc3 {[%clk 0:02:48.4]} 3... d5 {[%clk 0:02:53]} 4.
Nf3 {[%clk 0:02:48.3]} 4... Bg7 {[%clk 0:02:51.6]} 5. Bg5 {[%clk 0:02:48.8]}
5... Ne4 {[%clk 0:02:51.4]} 6. cxd5 {[%clk 0:02:48.8]} 6... Nxg5 {[%clk
0:02:50.7]} 7. Nxg5 {[%clk 0:02:49.7]} 7... e6 {[%clk 0:02:51.3]} 8. Qd2 {[%clk
0:02:50]} 8... exd5 {[%clk 0:02:47.4]} 9. Qe3+ {[%clk 0:02:50.5]} 9... Kf8
{[%clk 0:02:46.2]} 10. Qf4 {[%clk 0:02:50.5]} 10... Bf6 {[%clk 0:02:46.8]} 11.
h4 {[%clk 0:02:49.4]} 11... h6 {[%clk 0:02:41.6]} 12. Nf3 {[%clk 0:02:49.2]}
12... c6 {[%clk 0:02:38.3]} 13. g4 {[%clk 0:02:37.3]} 13... Be6 {[%clk 0:02:35]}
14. e3 {[%clk 0:02:33.9]} 14... Nd7 {[%clk 0:02:33.6]} 15. Bd3 {[%clk
0:02:33.8]} 15... Qb8 {[%clk 0:02:33.9]} 16. Ne2 {[%clk 0:02:33.7]} 16... Qxf4
{[%clk 0:02:33.4]} 17. Nxf4 {[%clk 0:02:33.4]} 17... Bxg4 {[%clk 0:02:34]} 18.
Be2 {[%clk 0:02:28.5]} 18... Bf5 {[%clk 0:02:26.3]} 19. O-O-O {[%clk 0:02:20.5]}
19... a5 {[%clk 0:02:25.6]} 20. Bd3 {[%clk 0:02:17.5]} 20... Bxd3 {[%clk
0:02:25.6]} 21. Nxd3 {[%clk 0:02:18.4]} 21... Ke7 {[%clk 0:02:24.8]} 22. h5
{[%clk 0:02:17.3]} 22... g5 {[%clk 0:02:24.7]} 23. Nh2 {[%clk 0:02:08.1]} 23...
Bg7 {[%clk 0:02:21.7]} 24. f4 {[%clk 0:02:03.1]} 24... Nf6 {[%clk 0:02:19.7]}
25. Nf3 {[%clk 0:01:55.2]} 25... Ne4 {[%clk 0:02:19.5]} 26. Rdg1 {[%clk
0:01:50.1]} 26... f6 {[%clk 0:02:19.8]} 27. Nd2 {[%clk 0:01:44.3]} 27... Nxd2
{[%clk 0:02:19.7]} 28. Kxd2 {[%clk 0:01:44.2]} 28... Bf8 {[%clk 0:02:17.5]} 29.
f5 {[%clk 0:01:30.9]} 29... Kd7 {[%clk 0:02:15.9]} 30. Nf2 {[%clk 0:01:23.5]}
30... Be7 {[%clk 0:02:15.3]} 31. Kd3 {[%clk 0:01:23.3]} 31... Ke8 {[%clk
0:02:15.3]} 32. Re1 {[%clk 0:01:20.1]} 32... Kf7 {[%clk 0:02:14.8]} 33. e4
{[%clk 0:01:15.2]} 33... dxe4+ {[%clk 0:02:15.7]} 34. Rxe4 {[%clk 0:01:11.6]}
34... Rad8 {[%clk 0:02:01.4]} 35. Rhe1 {[%clk 0:01:06.8]} 35... Rd7 {[%clk
0:01:53.6]} 36. Ng4 {[%clk 0:01:02]} 36... c5 {[%clk 0:01:50.7]} 37. a4 {[%clk
0:00:50]} 37... Bd8 {[%clk 0:01:15.5]} 38. Kc4 {[%clk 0:00:43.7]} 38... Rc7
{[%clk 0:00:58.1]} 39. d5 {[%clk 0:00:43.2]} 39... b6 {[%clk 0:00:56.4]} 40. Re6
{[%clk 0:00:42.9]} 40... Rd7 {[%clk 0:00:51.9]} 41. d6 {[%clk 0:00:42.3]} 41...
b5+ {[%clk 0:00:42.9]} 42. axb5 {[%clk 0:00:41.4]} 42... a4 {[%clk 0:00:41.2]}
43. Kxc5 {[%clk 0:00:40.6]} 43... Rb7 {[%clk 0:00:41.3]} 44. R1e4 {[%clk
0:00:32.9]} 44... Ra7 {[%clk 0:00:24.8]} 45. Kc6 {[%clk 0:00:30.8]} 45... Rf8
{[%clk 0:00:19.1]} 46. b6 {[%clk 0:00:20.5]} 46... Ra6 {[%clk 0:00:18.6]} 47.
Rb4 {[%clk 0:00:20.5]} 47... a3 {[%clk 0:00:16.6]} 48. bxa3 {[%clk 0:00:19.8]}
48... Rxa3 {[%clk 0:00:17.5]} 49. b7 {[%clk 0:00:19.7]} 49... Rc3+ {[%clk
0:00:16.7]} 50. Kd7 {[%clk 0:00:18.6]} 50... Ba5 {[%clk 0:00:16.7]} 51. b8=Q
{[%clk 0:00:17.9]} 51... Bxb4 {[%clk 0:00:13.8]} 52. Nxh6+ {[%clk 0:00:16.3]}
52... Kg7 {[%clk 0:00:13.7]} 53. Re7+ {[%clk 0:00:16.8]} 53... Kxh6 {[%clk
0:00:12.4]} 54. Qxf8+ {[%clk 0:00:17.3]} 54... Kxh5 {[%clk 0:00:13.3]} 55. Qh8+
{[%clk 0:00:17.3]} 55... Kg4 {[%clk 0:00:13.5]} 56. Qh1 {[%clk 0:00:16.6]} 56...
Rd3 {[%clk 0:00:13]} 57. Qe4+ {[%clk 0:00:16.6]} 57... Kg3 {[%clk 0:00:12.3]}
58. Qxd3+ {[%clk 0:00:17.5]} 58... Kh4 {[%clk 0:00:09]} 59. Re4+ {[%clk
0:00:17.8]} 59... g4 {[%clk 0:00:09.9]} 60. Rxb4 {[%clk 0:00:17.2]} 1-0

[Event "*** Titled Tuesday Blitz"]
[Site "Chess.com"]
[Date "2021.04.20"]
[Round "3"]
[White "Guzman70"]
[Black "Gulkov_Igor"]
[Result "1/2-1/2"]
[WhiteElo "2321"]
[BlackElo "2526"]
[TimeControl "180+1"]
[EndTime "10:28:16 PDT"]
[Termination "Game drawn by repetition"]

1. d4 {[%clk 0:03:00.9]} 1... Nf6 {[%clk 0:02:59.2]} 2. Bf4 {[%clk 0:02:59.1]}
2... g6 {[%clk 0:02:58.7]} 3. Nc3 {[%clk 0:02:58.2]} 3... d5 {[%clk 0:02:58.1]}
4. Nf3 {[%clk 0:02:55.5]} 4... Bg7 {[%clk 0:02:57.6]} 5. e3 {[%clk 0:02:55.2]}
5... O-O {[%clk 0:02:56.4]} 6. Be2 {[%clk 0:02:55.1]} 6... c5 {[%clk 0:02:53.1]}
7. dxc5 {[%clk 0:02:49.2]} 7... Qa5 {[%clk 0:02:52.4]} 8. O-O {[%clk 0:02:42.4]}
8... Qxc5 {[%clk 0:02:51.5]} 9. Ne5 {[%clk 0:02:29.5]} 9... Nc6 {[%clk
0:02:40.8]} 10. Nxc6 {[%clk 0:02:18.2]} 10... Qxc6 {[%clk 0:02:36.1]} 11. Be5
{[%clk 0:02:13.7]} 11... Be6 {[%clk 0:02:33.3]} 12. Qd4 {[%clk 0:02:08.2]} 12...
a6 {[%clk 0:02:18.1]} 13. Rad1 {[%clk 0:02:04.6]} 13... Rfd8 {[%clk 0:02:17.4]}
14. Bf3 {[%clk 0:02:01.7]} 14... Rac8 {[%clk 0:02:12.8]} 15. h4 {[%clk
0:01:47.4]} 15... Qc4 {[%clk 0:01:53]} 16. h5 {[%clk 0:01:27.9]} 16... Qxd4
{[%clk 0:01:49.1]} 17. Rxd4 {[%clk 0:01:23.5]} 17... Nxh5 {[%clk 0:01:47.5]} 18.
Bxg7 {[%clk 0:01:08.2]} 18... Nxg7 {[%clk 0:01:46.8]} 19. Nxd5 {[%clk
0:01:03.4]} 19... Nf5 {[%clk 0:01:10.8]} 20. Rd3 {[%clk 0:00:47.6]} 20... Bxd5
{[%clk 0:01:07.7]} 21. Bxd5 {[%clk 0:00:40.8]} 21... Nd6 {[%clk 0:01:06.9]} 22.
c3 {[%clk 0:00:27.4]} 22... b6 {[%clk 0:00:51]} 23. Rfd1 {[%clk 0:00:25.9]}
23... Kf8 {[%clk 0:00:49.2]} 24. a3 {[%clk 0:00:22.5]} 24... Rc7 {[%clk
0:00:35.5]} 25. Ba2 {[%clk 0:00:16]} 25... Rdc8 {[%clk 0:00:34.3]} 26. f3 {[%clk
0:00:15.6]} 26... Rc5 {[%clk 0:00:23.6]} 27. e4 {[%clk 0:00:15.8]} 27... f6
{[%clk 0:00:22.8]} 28. Kf2 {[%clk 0:00:15.7]} 28... R8c7 {[%clk 0:00:23]} 29.
R1d2 {[%clk 0:00:16]} 29... a5 {[%clk 0:00:22.6]} 30. Ke3 {[%clk 0:00:15.9]}
30... g5 {[%clk 0:00:21.2]} 31. g3 {[%clk 0:00:15.8]} 31... h6 {[%clk
0:00:20.5]} 32. f4 {[%clk 0:00:16.2]} 32... gxf4+ {[%clk 0:00:18.1]} 33. gxf4
{[%clk 0:00:17.1]} 33... Rh5 {[%clk 0:00:18.4]} 34. Rd5 {[%clk 0:00:09.6]} 34...
Rxd5 {[%clk 0:00:17.7]} 35. Rxd5 {[%clk 0:00:09.2]} 35... Rc5 {[%clk 0:00:16.7]}
36. Rxc5 {[%clk 0:00:08.7]} 36... bxc5 {[%clk 0:00:16.8]} 37. e5 {[%clk
0:00:09.3]} 37... fxe5 {[%clk 0:00:15.6]} 38. fxe5 {[%clk 0:00:10.2]} 38... Nf5+
{[%clk 0:00:11.6]} 39. Kf4 {[%clk 0:00:09.7]} 39... Ng7 {[%clk 0:00:09.5]} 40.
Bd5 {[%clk 0:00:08.3]} 40... h5 {[%clk 0:00:09.7]} 41. Kg5 {[%clk 0:00:08]}
41... e6 {[%clk 0:00:08.8]} 42. Bc4 {[%clk 0:00:07.3]} 42... Ke7 {[%clk
0:00:08.9]} 43. a4 {[%clk 0:00:06.8]} 43... Nf5 {[%clk 0:00:07.6]} 44. Kxh5
{[%clk 0:00:05.6]} 44... Ne3 {[%clk 0:00:07.9]} 45. Bd3 {[%clk 0:00:05.4]} 45...
Nd1 {[%clk 0:00:07.9]} 46. b3 {[%clk 0:00:03]} 46... Nxc3 {[%clk 0:00:07.4]} 47.
Bc4 {[%clk 0:00:03.6]} 47... Ne4 {[%clk 0:00:06.8]} 48. Kg4 {[%clk 0:00:03.5]}
48... Nd2 {[%clk 0:00:06.5]} 49. Kf4 {[%clk 0:00:04.1]} 49... Nxc4 {[%clk
0:00:06.3]} 50. bxc4 {[%clk 0:00:05]} 50... Kf7 {[%clk 0:00:05.7]} 51. Kg5
{[%clk 0:00:05.3]} 51... Kg7 {[%clk 0:00:06.3]} 52. Kh5 {[%clk 0:00:05.8]} 52...
Kh7 {[%clk 0:00:06.7]} 53. Kg5 {[%clk 0:00:06.4]} 53... Kg7 {[%clk 0:00:07.3]}
54. Kh5 {[%clk 0:00:06.9]} 54... Kh7 {[%clk 0:00:07.9]} 55. Kg5 {[%clk
0:00:07.4]} 55... Kg7 {[%clk 0:00:08.5]} 1/2-1/2

[Event "*** Titled Tuesday Blitz"]
[Site "Chess.com"]
[Date "2021.04.20"]
[Round "3"]
[White "dmitrijiIM"]
[Black "ChessAdvanceUSA"]
[Result "1-0"]
[WhiteElo "2539"]
[BlackElo "2321"]
[TimeControl "180+1"]
[EndTime "10:28:17 PDT"]
[Termination "dmitrijiIM won by resignation"]

1. e4 {[%clk 0:03:00.9]} 1... Nc6 {[%clk 0:02:54.1]} 2. Nf3 {[%clk 0:03:00.9]}
2... d6 {[%clk 0:02:53.9]} 3. d4 {[%clk 0:03:01.4]} 3... Nf6 {[%clk 0:02:53.7]}
4. Nbd2 {[%clk 0:02:59.6]} 4... g6 {[%clk 0:02:53.5]} 5. h3 {[%clk 0:02:59.6]}
5... Bg7 {[%clk 0:02:53.5]} 6. Bd3 {[%clk 0:03:00.3]} 6... O-O {[%clk
0:02:53.2]} 7. O-O {[%clk 0:03:00.7]} 7... Nd7 {[%clk 0:02:52.5]} 8. c3 {[%clk
0:03:00.3]} 8... e5 {[%clk 0:02:52.8]} 9. Re1 {[%clk 0:02:59.5]} 9... exd4
{[%clk 0:02:51.9]} 10. cxd4 {[%clk 0:03:00.2]} 10... Nxd4 {[%clk 0:02:52.5]} 11.
Nxd4 {[%clk 0:03:00.9]} 11... Bxd4 {[%clk 0:02:53.2]} 12. Nf3 {[%clk 0:03:01.6]}
12... Bg7 {[%clk 0:02:53.1]} 13. Bg5 {[%clk 0:03:00.3]} 13... Bf6 {[%clk
0:02:51.7]} 14. Bh6 {[%clk 0:03:00.6]} 14... Bg7 {[%clk 0:02:52.1]} 15. Bg5
{[%clk 0:03:01.2]} 15... Bf6 {[%clk 0:02:52.6]} 16. Bh6 {[%clk 0:02:58.7]} 16...
Bg7 {[%clk 0:02:52.9]} 17. Qd2 {[%clk 0:02:55.3]} 17... Ne5 {[%clk 0:02:46.9]}
18. Nxe5 {[%clk 0:02:51.6]} 18... dxe5 {[%clk 0:02:47.8]} 19. Be3 {[%clk
0:02:49.4]} 19... Be6 {[%clk 0:02:45.3]} 20. Qc2 {[%clk 0:02:49.8]} 20... c6
{[%clk 0:02:43.3]} 21. a4 {[%clk 0:02:48.3]} 21... Qa5 {[%clk 0:02:35.8]} 22. b4
{[%clk 0:02:46.1]} 22... Qd8 {[%clk 0:02:28.2]} 23. Rec1 {[%clk 0:02:37]} 23...
a6 {[%clk 0:02:25.8]} 24. Rd1 {[%clk 0:02:27.7]} 24... Qc8 {[%clk 0:02:19.8]}
25. Bb6 {[%clk 0:02:23.5]} 25... Bf6 {[%clk 0:02:17.8]} 26. Qc3 {[%clk
0:02:08.4]} 26... Re8 {[%clk 0:02:15.5]} 27. Be2 {[%clk 0:01:58.2]} 27... Bd8
{[%clk 0:01:47.4]} 28. Bxd8 {[%clk 0:01:50.2]} 28... Rxd8 {[%clk 0:01:48.3]} 29.
Qxe5 {[%clk 0:01:50.6]} 29... Rxd1+ {[%clk 0:01:43.6]} 30. Rxd1 {[%clk
0:01:51.5]} 30... Qe8 {[%clk 0:01:43.6]} 31. Qc7 {[%clk 0:01:17.4]} 31... Qc8
{[%clk 0:01:36.8]} 32. Qb6 {[%clk 0:01:10.4]} 32... Rb8 {[%clk 0:01:32.3]} 33.
a5 {[%clk 0:01:04.4]} 33... Qe8 {[%clk 0:01:31.1]} 34. Bf1 {[%clk 0:00:50.8]}
34... Qe7 {[%clk 0:01:21.8]} 35. Bxa6 {[%clk 0:00:38]} 35... Bb3 {[%clk
0:00:48.3]} 36. Re1 {[%clk 0:00:29.1]} 36... Ba4 {[%clk 0:00:25.7]} 37. Bf1
{[%clk 0:00:24.8]} 37... Re8 {[%clk 0:00:20.3]} 38. Ra1 {[%clk 0:00:19.6]} 38...
Bb3 {[%clk 0:00:16.4]} 39. f3 {[%clk 0:00:20.2]} 39... Qe5 {[%clk 0:00:15.6]}
40. Rb1 {[%clk 0:00:18.9]} 40... Ba2 {[%clk 0:00:15.6]} 41. Rd1 {[%clk
0:00:18.5]} 41... Bb3 {[%clk 0:00:15]} 42. Rd7 {[%clk 0:00:16.1]} 42... Qb2
{[%clk 0:00:10.7]} 43. Qf2 {[%clk 0:00:11.1]} 43... Qa3 {[%clk 0:00:10.3]} 44.
Rxb7 {[%clk 0:00:10.8]} 44... Ba4 {[%clk 0:00:10.2]} 45. Qd2 {[%clk 0:00:08]}
45... Kg7 {[%clk 0:00:09.2]} 46. Rd7 {[%clk 0:00:07.4]} 46... h5 {[%clk
0:00:08.8]} 47. Rd3 {[%clk 0:00:07]} 47... Qa1 {[%clk 0:00:08]} 48. Qc3+ {[%clk
0:00:07.6]} 48... Qxc3 {[%clk 0:00:08.2]} 49. Rxc3 {[%clk 0:00:08.5]} 49... Rd8
{[%clk 0:00:08.6]} 50. a6 {[%clk 0:00:06.3]} 50... Ra8 {[%clk 0:00:08.8]} 51.
Kf2 {[%clk 0:00:05.9]} 51... Bb5 {[%clk 0:00:09.1]} 52. Bxb5 {[%clk 0:00:06.5]}
52... cxb5 {[%clk 0:00:10]} 53. Ra3 {[%clk 0:00:07.3]} 53... Ra7 {[%clk
0:00:10.4]} 54. Ke3 {[%clk 0:00:07.7]} 54... Kf6 {[%clk 0:00:11.3]} 55. Kd4
{[%clk 0:00:08.2]} 55... Ke6 {[%clk 0:00:12.1]} 56. Kc5 {[%clk 0:00:08.8]} 56...
Ke5 {[%clk 0:00:12.7]} 57. Kxb5 {[%clk 0:00:09.1]} 57... Re7 {[%clk 0:00:13.4]}
58. a7 {[%clk 0:00:09.2]} 58... Kf4 {[%clk 0:00:14.3]} 59. a8=Q {[%clk
0:00:09.5]} 59... Re5+ {[%clk 0:00:15.2]} 60. Qd5 {[%clk 0:00:09.7]} 1-0

[Event "*** Titled Tuesday Blitz"]
[Site "Chess.com"]
[Date "2021.04.20"]
[Round "3"]
[White "GM_LOADING"]
[Black "PavelShkapenko"]
[Result "1-0"]
[WhiteElo "2530"]
[BlackElo "2712"]
[TimeControl "180+1"]
[EndTime "10:28:20 PDT"]
[Termination "GM_LOADING won by resignation"]

1. e4 {[%clk 0:03:00.9]} 1... e5 {[%clk 0:02:59.8]} 2. Nf3 {[%clk 0:03:00.4]}
2... Nc6 {[%clk 0:03:00.4]} 3. Bc4 {[%clk 0:03:01]} 3... d6 {[%clk 0:02:59.1]}
4. O-O {[%clk 0:02:53.1]} 4... Be7 {[%clk 0:02:58.4]} 5. d3 {[%clk 0:02:45.7]}
5... Nf6 {[%clk 0:02:56.3]} 6. a4 {[%clk 0:02:38.7]} 6... O-O {[%clk 0:02:49.3]}
7. Re1 {[%clk 0:02:37.3]} 7... Kh8 {[%clk 0:02:47.8]} 8. h3 {[%clk 0:02:34]}
8... Ng8 {[%clk 0:02:47.6]} 9. Nc3 {[%clk 0:02:34.2]} 9... f5 {[%clk 0:02:47.5]}
10. Nd5 {[%clk 0:02:34.5]} 10... f4 {[%clk 0:02:41.7]} 11. d4 {[%clk 0:02:31.5]}
11... Bf6 {[%clk 0:02:42]} 12. c3 {[%clk 0:02:28.4]} 12... Bd7 {[%clk 0:02:37]}
13. b4 {[%clk 0:02:26.3]} 13... Be8 {[%clk 0:02:35.1]} 14. b5 {[%clk 0:02:21.3]}
14... Na5 {[%clk 0:02:31.4]} 15. Ba2 {[%clk 0:02:21.3]} 15... Bh5 {[%clk
0:02:31.9]} 16. Ba3 {[%clk 0:02:14.7]} 16... exd4 {[%clk 0:02:00.8]} 17. cxd4
{[%clk 0:02:09.5]} 17... Bxf3 {[%clk 0:02:00.3]} 18. Qxf3 {[%clk 0:02:05.5]}
18... Bxd4 {[%clk 0:02:00.4]} 19. Rad1 {[%clk 0:02:05]} 19... Be5 {[%clk
0:02:00.9]} 20. Nb4 {[%clk 0:01:35.1]} 20... Qf6 {[%clk 0:01:52]} 21. Nd5 {[%clk
0:01:23.7]} 21... Qd8 {[%clk 0:01:51.5]} 22. Nb4 {[%clk 0:01:23.4]} 22... Qf6
{[%clk 0:01:48.9]} 23. Nd3 {[%clk 0:01:12.6]} 23... Ne7 {[%clk 0:01:35.4]} 24.
Nxe5 {[%clk 0:01:00.3]} 24... Qxe5 {[%clk 0:01:35.2]} 25. Re2 {[%clk 0:00:53.3]}
25... Ng6 {[%clk 0:01:33.7]} 26. Bb2 {[%clk 0:00:51.9]} 26... Qe7 {[%clk
0:01:33.6]} 27. Rd5 {[%clk 0:00:43.5]} 27... c6 {[%clk 0:01:24.6]} 28. Rh5
{[%clk 0:00:38.9]} 28... d5 {[%clk 0:00:41]} 29. exd5 {[%clk 0:00:37.9]} 29...
Qf7 {[%clk 0:00:41.3]} 30. Bb1 {[%clk 0:00:37]} 30... cxd5 {[%clk 0:00:40.5]}
31. Rxh7+ {[%clk 0:00:32.1]} 31... Kxh7 {[%clk 0:00:40.7]} 32. Qh5+ {[%clk
0:00:32.3]} 32... Kg8 {[%clk 0:00:40.9]} 33. Bxg6 {[%clk 0:00:32.8]} 33... Qxg6
{[%clk 0:00:40.6]} 34. Qxg6 {[%clk 0:00:33.7]} 34... Rf7 {[%clk 0:00:41.3]} 35.
Bd4 {[%clk 0:00:22.4]} 35... Nc4 {[%clk 0:00:39.9]} 36. f3 {[%clk 0:00:21]}
36... a6 {[%clk 0:00:39.9]} 37. Qe6 {[%clk 0:00:18.4]} 37... axb5 {[%clk
0:00:39.7]} 38. axb5 {[%clk 0:00:19.3]} 38... Rd8 {[%clk 0:00:35.3]} 39. Kh2
{[%clk 0:00:09.6]} 39... Kf8 {[%clk 0:00:34.8]} 40. Rc2 {[%clk 0:00:07.1]} 40...
b6 {[%clk 0:00:29.4]} 41. Rxc4 {[%clk 0:00:04.1]} 41... dxc4 {[%clk 0:00:29.2]}
42. Qxc4 {[%clk 0:00:05]} 42... Rd6 {[%clk 0:00:25.7]} 43. Qc8+ {[%clk
0:00:02.8]} 43... Ke7 {[%clk 0:00:25.7]} 44. Be5 {[%clk 0:00:02.8]} 44... Rd7
{[%clk 0:00:24.5]} 45. Bc7 {[%clk 0:00:03]} 45... Ke6 {[%clk 0:00:24]} 46. Bxb6
{[%clk 0:00:03.3]} 46... Kd5 {[%clk 0:00:24.1]} 47. Qc6+ {[%clk 0:00:03.3]}
47... Ke5 {[%clk 0:00:23.8]} 48. Qe4+ {[%clk 0:00:04]} 48... Kf6 {[%clk
0:00:23.6]} 49. Bd4+ {[%clk 0:00:04.8]} 49... Kg5 {[%clk 0:00:23.8]} 50. b6
{[%clk 0:00:05.5]} 50... Rde7 {[%clk 0:00:20.1]} 51. Be5 {[%clk 0:00:06]} 51...
Rf5 {[%clk 0:00:18.5]} 52. Bxf4+ {[%clk 0:00:06.3]} 52... Kf6 {[%clk 0:00:18.8]}
53. Qxe7+ {[%clk 0:00:06.6]} 53... Kxe7 {[%clk 0:00:18.6]} 54. b7 {[%clk
0:00:07.5]} 54... Rb5 {[%clk 0:00:19]} 55. b8=Q {[%clk 0:00:07.9]} 55... Rxb8
{[%clk 0:00:19.9]} 56. Bxb8 {[%clk 0:00:08.6]} 1-0

[Event "*** Titled Tuesday Blitz"]
[Site "Chess.com"]
[Date "2021.04.20"]
[Round "3"]
[White "davidkalashian"]
[Black "Jungle_Jaguar"]
[Result "0-1"]
[WhiteElo "2513"]
[BlackElo "2726"]
[TimeControl "180+1"]
[EndTime "10:28:23 PDT"]
[Termination "Jungle_Jaguar won on time"]

1. e4 {[%clk 0:03:00.9]} 1... c5 {[%clk 0:02:59.4]} 2. Nc3 {[%clk 0:03:00.6]}
2... Nc6 {[%clk 0:02:58.4]} 3. Nf3 {[%clk 0:03:00.7]} 3... Nf6 {[%clk
0:02:57.7]} 4. Bb5 {[%clk 0:03:00]} 4... Nd4 {[%clk 0:02:55.9]} 5. e5 {[%clk
0:02:59.4]} 5... Nxb5 {[%clk 0:02:46.8]} 6. Nxb5 {[%clk 0:03:00.3]} 6... Nd5
{[%clk 0:02:47.1]} 7. Ng5 {[%clk 0:02:59.8]} 7... h6 {[%clk 0:02:28]} 8. Nxf7
{[%clk 0:02:28.2]} 8... Kxf7 {[%clk 0:02:28.9]} 9. Qf3+ {[%clk 0:02:26.4]} 9...
Nf6 {[%clk 0:02:29.4]} 10. exf6 {[%clk 0:02:22.8]} 10... exf6 {[%clk 0:02:29.3]}
11. O-O {[%clk 0:02:20.1]} 11... d5 {[%clk 0:02:28.4]} 12. d4 {[%clk 0:02:19.7]}
12... a6 {[%clk 0:02:21.2]} 13. Nc3 {[%clk 0:02:18.4]} 13... cxd4 {[%clk
0:02:21.3]} 14. Nxd5 {[%clk 0:02:17.7]} 14... Bd7 {[%clk 0:02:09.5]} 15. Nf4
{[%clk 0:02:16.5]} 15... Bc6 {[%clk 0:01:58.8]} 16. Qb3+ {[%clk 0:02:11.7]}
16... Ke8 {[%clk 0:01:50.4]} 17. Ng6 {[%clk 0:02:03]} 17... Bd5 {[%clk
0:01:39.2]} 18. Re1+ {[%clk 0:01:37.3]} 18... Kf7 {[%clk 0:01:33.9]} 19. Nxh8+
{[%clk 0:01:36.7]} 19... Kg8 {[%clk 0:01:34.3]} 20. Qd3 {[%clk 0:01:34.8]} 20...
Kxh8 {[%clk 0:01:32.6]} 21. Qxd4 {[%clk 0:01:34.9]} 21... Qa5 {[%clk 0:01:27.7]}
22. Bd2 {[%clk 0:01:28.1]} 22... Qb5 {[%clk 0:01:26.7]} 23. a4 {[%clk
0:01:24.8]} 23... Qc6 {[%clk 0:01:24.6]} 24. Qg4 {[%clk 0:01:20.7]} 24... Qxc2
{[%clk 0:01:21]} 25. Bc3 {[%clk 0:01:20.3]} 25... Bc5 {[%clk 0:01:17.4]} 26. Re2
{[%clk 0:01:12]} 26... Qb3 {[%clk 0:01:17.2]} 27. Rae1 {[%clk 0:01:10.8]} 27...
Bc6 {[%clk 0:01:09.5]} 28. Qf5 {[%clk 0:01:07.5]} 28... Qc4 {[%clk 0:01:01.7]}
29. h3 {[%clk 0:01:01.6]} 29... Rf8 {[%clk 0:00:51.7]} 30. a5 {[%clk 0:00:56.4]}
30... Qb5 {[%clk 0:00:49.1]} 31. Qf4 {[%clk 0:00:45.9]} 31... Qd3 {[%clk
0:00:45.9]} 32. Rd2 {[%clk 0:00:42.2]} 32... Qg6 {[%clk 0:00:44.4]} 33. Qg4
{[%clk 0:00:39.8]} 33... Qf7 {[%clk 0:00:40.3]} 34. Red1 {[%clk 0:00:38.2]}
34... Re8 {[%clk 0:00:37.1]} 35. Rd8 {[%clk 0:00:37.2]} 35... Qe7 {[%clk
0:00:26.8]} 36. Rxe8+ {[%clk 0:00:36.2]} 36... Qxe8 {[%clk 0:00:27.7]} 37. Qf5
{[%clk 0:00:25.7]} 37... Qe7 {[%clk 0:00:27.3]} 38. Qc8+ {[%clk 0:00:23.8]}
38... Kh7 {[%clk 0:00:26.9]} 39. Qf5+ {[%clk 0:00:22.2]} 39... Kg8 {[%clk
0:00:27.3]} 40. Re1 {[%clk 0:00:21.6]} 40... Qf8 {[%clk 0:00:23.3]} 41. Qe6+
{[%clk 0:00:20.4]} 41... Kh7 {[%clk 0:00:23]} 42. Rd1 {[%clk 0:00:20.6]} 42...
Kh8 {[%clk 0:00:13.3]} 43. Qf5 {[%clk 0:00:19.6]} 43... Kg8 {[%clk 0:00:13]} 44.
b4 {[%clk 0:00:18.8]} 44... Bxb4 {[%clk 0:00:11.8]} 45. Qe6+ {[%clk 0:00:18.5]}
45... Kh7 {[%clk 0:00:11.8]} 46. Qf5+ {[%clk 0:00:17.7]} 46... Kg8 {[%clk
0:00:12.3]} 47. Bxb4 {[%clk 0:00:17.9]} 47... Qxb4 {[%clk 0:00:13.2]} 48. Rd8+
{[%clk 0:00:16.5]} 48... Kf7 {[%clk 0:00:13.7]} 49. Rc8 {[%clk 0:00:15.5]} 49...
Qe1+ {[%clk 0:00:12.8]} 50. Kh2 {[%clk 0:00:15.3]} 50... Qd2 {[%clk 0:00:09.4]}
51. Rc7+ {[%clk 0:00:13.7]} 51... Kg8 {[%clk 0:00:10]} 52. Qf4 {[%clk
0:00:10.9]} 52... Qxf4+ {[%clk 0:00:10]} 0-1